bitfinex/quotes_SOLUSD_20241121
["timestamp","ask_amount","ask_price","bid_price","bid_amount"]
[1732206145558,30.16490947,249.1,249.09,27.791484]
[1732206146157,30.16490947,249.1,249.09,23.776884]
[1732206146370,30.16490947,249.1,249.08,23.776884]
[1732206146589,1.0,249.35,249.08,23.776884]
[1732206146758,30.16490947,249.16,249.08,23.776884]
[1732206146959,30.16490947,249.24,249.08,23.776884]
[1732206146960,30.16490947,249.14,249.08,23.776884]
[1732206147180,30.16490947,249.12,249.08,23.776884]
[1732206147761,30.16490947,249.21,249.1,24.276884]
[1732206148190,30.16490947,249.21,249.11,30.16490947]
[1732206148561,30.16490947,249.21,249.12,23.776884]
[1732206148769,30.16490947,249.17,249.12,23.776884]
[1732206148972,10.67391927,249.17,249.14,23.776884]
[1732206149390,30.16490947,249.15,249.14,23.776884]
[1732206150069,30.16490947,249.24,249.16,23.776884]
[1732206150668,30.16490947,249.17,249.16,23.776884]
[1732206153168,30.16490947,249.19,249.17,4.0133]
[1732206153367,1.0,249.4,249.17,14.0466]
[1732206153586,30.16490947,249.2,249.17,14.0466]
[1732206154495,30.16490947,249.18,249.1,34.1227]
[1732206154672,30.16490947,249.2,249.11,30.16490947]
[1732206155661,30.16490947,249.2,249.12,10.0353]
[1732206155889,30.16490947,249.16,249.12,10.0353]
[1732206156394,30.16490947,249.18,249.12,10.0353]
[1732206156575,30.16490947,249.2,249.12,10.0353]
[1732206156767,18.53916876,249.2,249.12,10.0353]
[1732206158399,18.53916876,249.22,249.12,28.57446876]
[1732206158692,18.53916876,249.31,249.21,18.53916876]
[1732206158867,18.53916876,249.36,249.17,18.53916876]
[1732206159069,18.53916876,249.27,249.15,18.53916876]
[1732206159272,18.53916876,249.27,249.17,18.53916876]
[1732206159468,18.53916876,249.27,249.15,18.53916876]
[1732206159694,18.53916876,249.25,249.15,18.53916876]
[1732206159880,18.53916876,249.21,249.12,24.0847]
[1732206160480,18.53916876,249.19,249.12,24.0847]
[1732206160687,18.53916876,249.21,249.12,24.0847]
[1732206160881,18.53916876,249.21,249.12,34.12]
[1732206161691,18.53916876,249.23,249.13,18.53916876]
[1732206161995,18.53916876,249.23,249.14,14.0483]
[1732206162905,18.53916876,249.21,249.14,14.0483]
[1732206163121,18.53916876,249.21,249.14,10.0345]
[1732206163407,18.53916876,249.19,249.14,10.0345]
[1732206163977,15.2156,249.38,249.27,162.7]
[1732206164279,18.53916876,249.29,249.15,18.53916876]
[1732206164494,18.53916876,249.24,249.14,10.0345]
[1732206165075,18.53916876,249.24,249.15,18.53916876]
[1732206165288,28.2296,249.39,249.23,18.53916876]
[1732206165497,18.53916876,249.33,249.23,18.53916876]
[1732206165991,18.53916876,249.24,249.16,14.0471]
[1732206166186,18.53916876,249.23,249.16,14.0471]
[1732206166412,18.53916876,249.25,249.16,14.0471]
[1732206167078,18.53916876,249.23,249.16,14.0471]
[1732206168085,18.53916876,249.19,249.12,20.0706]
[1732206170384,18.53916876,249.17,249.12,20.0706]
[1732206171093,11.5188,249.35,249.15,18.53916876]
[1732206171299,18.53916876,249.32,249.21,18.53916876]
[1732206171497,18.53916876,249.32,249.13,0.5]
[1732206171498,18.53916876,249.34,249.23,18.53916876]
[1732206171703,18.53916876,249.32,249.23,18.53916876]
[1732206171892,18.53916876,249.32,249.21,18.53916876]
[1732206172998,18.53916876,249.32,249.22,14.0437]
[1732206173584,18.53916876,249.32,249.23,18.53916876]
[1732206174107,18.53916876,249.32,249.24,23.776884]
[1732206174502,18.53916876,249.32,249.23,23.776884]
[1732206174687,18.53916876,249.32,249.24,14.0425]
[1732206174888,18.53916876,249.37,249.28,23.776884]
[1732206175408,18.53916876,249.35,249.26,23.776884]
[1732206175909,18.53916876,249.35,249.28,23.776884]
[1732206176206,18.53916876,249.38,249.29,18.53916876]
[1732206176379,11.8466,249.61,249.33,18.53916876]
[1732206176579,11.8466,249.61,249.41,23.776884]
[1732206176580,4.0064,249.6,249.41,23.776884]
[1732206176913,18.53916876,249.43,249.42,14.0325]
[1732206177132,18.53916876,249.43,249.37,10.0251]
[1732206177280,18.53916876,249.48,249.37,10.0251]
[1732206177648,18.53916876,249.38,249.37,10.0251]
[1732206178382,18.53916876,249.38,249.28,34.098]
[1732206178596,18.53916876,249.38,249.29,23.776884]
[1732206179005,18.53916876,249.36,249.29,23.776884]
[1732206179906,22.54756876,249.48,249.29,23.776884]
[1732206179907,18.53916876,249.38,249.29,23.776884]
[1732206180486,18.53916876,249.38,249.31,23.776884]
[1732206180890,22.54756876,249.48,249.31,23.776884]
[1732206181094,22.54756876,249.48,249.3,13.7392]
[1732206181095,18.53916876,249.32,249.3,13.7392]
[1732206181292,18.53916876,249.32,249.3,10.028]
[1732206181515,18.53916876,249.32,249.28,4.0114]
[1732206181710,37.07833752,249.29,249.16,11.8406]
[1732206182013,18.53916876,249.23,249.18,3.56181397]
[1732206182209,0.5,249.38,249.17,5.37050649]
[1732206182431,18.53916876,249.18,249.13,29.3554]
[1732206182737,18.53916876,249.21,249.13,29.3554]
[1732206182913,18.53916876,249.21,249.17,30.0999]
[1732206183233,18.53916876,249.25,249.17,30.0999]
[1732206184410,18.53916876,249.25,249.18,5.92750825]
[1732206184801,18.53916876,249.25,249.19,23.776884]
[1732206185216,18.53916876,249.27,249.18,23.776884]
[1732206185428,18.53916876,249.25,249.18,29.70439225]
[1732206185606,18.53916876,249.25,249.18,23.776884]
[1732206185812,18.53916876,249.2,249.17,4.0133]
[1732206186034,4.0084,249.47,249.17,34.1132]
[1732206186330,18.53916876,249.32,249.2,18.53916876]
[1732206186531,0.5,249.45,249.18,23.98461778]
[1732206186532,18.53916876,249.3,249.18,23.98461778]
[1732206187034,18.53916876,249.3,249.19,20.0]
[1732206187408,18.53916876,249.3,249.18,18.53916876]
[1732206187605,18.53916876,249.32,249.2,18.53916876]
[1732206187915,11.022,249.45,249.17,20.5666]
[1732206187916,18.53916876,249.34,249.23,23.776884]
[1732206188327,18.53916876,249.36,249.26,23.776884]
[1732206188546,18.53916876,249.34,249.26,23.776884]
[1732206188732,4.0084,249.47,249.25,18.53916876]
[1732206189044,18.53916876,249.42,249.33,23.776884]
[1732206189721,18.53916876,249.42,249.34,14.0369]
[1732206190108,18.53916876,249.42,249.35,23.776884]
[1732206191027,18.53916876,249.42,249.36,10.0256]
[1732206191235,18.53916876,249.4,249.33,4.0107]
[1732206191414,18.53916876,249.38,249.33,4.0107]
[1732206191615,4.0067,249.58,249.45,162.7]
[1732206191824,18.53916876,249.46,249.36,18.53916876]
[1732206192214,18.53916876,249.44,249.34,18.53916876]
[1732206192616,18.53916876,249.44,249.35,23.776884]
[1732206193121,29.05526876,249.6,249.37,23.776884]
[1732206193122,18.53916876,249.42,249.37,23.776884]
[1732206193329,18.53916876,249.38,249.37,23.776884]
[1732206193526,18.53916876,249.38,249.36,14.0358]
[1732206193939,18.53916876,249.38,249.33,4.0105]
[1732206193940,18.53916876,249.37,249.33,4.0105]
[1732206194142,18.53916876,249.34,249.18,11.9086]
[1732206194319,18.53916876,249.24,249.22,14.0437]
[1732206194733,18.53916876,249.24,249.22,10.0312]
[1732206195531,37.07833752,249.24,249.19,4.013]
[1732206195708,18.53916876,249.2,249.19,4.013]
[1732206196137,18.53916876,249.2,249.16,10.0334]
[1732206196341,18.53916876,249.24,249.16,10.0334]
[1732206196342,18.53916876,249.17,249.16,10.0334]
[1732206196513,34.0322,249.43,249.16,52.65336876]
[1732206196849,30.1090576,249.27,249.16,64.2232576]
[1732206197036,34.1192576,249.36,249.31,132.5909424]
[1732206197037,4.0106,249.34,249.31,132.5909424]
[1732206197337,4.0106,249.34,249.16,14.0468]
[1732206197639,30.1090576,249.23,249.16,14.0468]
[1732206198418,30.1090576,249.25,249.17,5.3270386]
[1732206198734,30.1090576,249.27,249.17,35.4360962]
[1732206198920,30.1090576,249.27,249.18,14.046]
[1732206199230,30.1090576,249.27,249.18,39.4388386]
[1732206199443,30.1090576,249.27,249.19,5.3270386]
[1732206200219,30.1090576,249.27,249.2,14.0449]
[1732206200542,30.1090576,249.21,249.2,14.0449]
[1732206200831,26.6982,249.44,249.22,0.5]
[1732206201008,30.1090576,249.31,249.23,9.18417003]
[1732206201335,30.1090576,249.31,249.23,15.32154196]
[1732206201528,30.1090576,249.34,249.23,45.43059956]
[1732206201728,30.1090576,249.34,249.25,30.1090576]
[1732206201921,30.1090576,249.34,249.26,5.55533361]
[1732206202118,30.1090576,249.3,249.24,14.0425]
[1732206202327,30.1090576,249.36,249.24,14.0425]
[1732206202328,30.1090576,249.25,249.24,14.0425]
[1732206203024,30.1090576,249.27,249.24,14.0425]
[1732206204341,30.1090576,249.27,249.24,10.0304]
[1732206205213,26.6982,249.44,249.24,10.0304]
[1732206205417,30.1090576,249.33,249.25,6.13737193]
[1732206205621,30.1090576,249.31,249.25,6.13737193]
[1732206205945,26.6982,249.44,249.38,132.5909424]
[1732206206237,30.1090576,249.39,249.25,6.13737193]
[1732206206438,30.1090576,249.33,249.26,34.1007]
[1732206206617,30.1090576,249.33,249.26,40.16700526]
[1732206207227,30.1090576,249.33,249.27,6.06630526]
[1732206207833,30.1090576,249.33,249.28,14.0403]
[1732206208535,30.1090576,249.33,249.28,20.10660526]
[1732206208739,30.1090576,249.33,249.28,14.0403]
[1732206208929,30.1090576,249.29,249.28,14.0403]
[1732206209826,30.1090576,249.29,249.2,20.0642]
[1732206210032,30.1090576,249.26,249.2,20.0642]
[1732206210328,30.1090576,249.39,249.24,30.6090576]
[1732206210555,30.1090576,249.37,249.26,30.1090576]
[1732206210728,30.1090576,249.35,249.25,11.62478346]
[1732206211114,30.1090576,249.35,249.25,5.34722763]
[1732206211739,30.1090576,249.33,249.26,34.1007]
[1732206211938,36.3327,249.42,249.37,132.5909424]
[1732206212144,30.1090576,249.38,249.26,34.1007]
[1732206212353,30.1090576,249.31,249.26,34.1007]
[1732206213032,30.1090576,249.33,249.26,34.1007]
[1732206213236,30.1090576,249.31,249.26,30.0889]
[1732206215144,30.1090576,249.41,249.3,30.1090576]
[1732206215439,11.0779,249.52,249.26,60.1979576]
[1732206215440,30.1090576,249.37,249.26,60.1979576]
[1732206215821,11.5779,249.52,249.26,60.1979576]
[1732206215822,30.1090576,249.35,249.26,60.1979576]
[1732206216041,30.1090576,249.35,249.26,64.2097576]
[1732206216547,30.1090576,249.39,249.29,30.1090576]
[1732206217251,4.0086,249.47,249.26,34.1007]
[1732206217252,30.1090576,249.35,249.26,34.1007]
[1732206217545,4.0086,249.47,249.26,34.1007]
[1732206217546,18.52173777,249.34,249.26,34.1007]
[1732206217749,18.52173777,249.36,249.26,52.62243777]
[1732206218235,18.52173777,249.34,249.26,34.1007]
[1732206218442,4.0086,249.46,249.26,52.62243777]
[1732206218624,18.52173777,249.37,249.26,52.62243777]
[1732206219655,18.52173777,249.35,249.26,34.1007]
[1732206220448,18.52173777,249.33,249.26,14.0414]
[1732206221539,18.52173777,249.33,249.26,10.0296]
[1732206222262,18.52173777,249.36,249.26,10.0296]
[1732206222447,18.52173777,249.33,249.26,10.0296]
[1732206225464,18.52173777,249.35,249.26,10.0296]
[1732206226354,18.52173777,249.32,249.26,10.0296]
[1732206228575,18.52173777,249.28,249.26,10.0296]
[1732206228746,18.52173777,249.28,249.2,15.95930825]
[1732206228952,18.52173777,249.22,249.2,14.0446]
[1732206229974,18.52173777,249.22,249.16,5.685111]
[1732206230148,18.52173777,249.22,249.15,34.1153]
[1732206230347,18.52173777,249.22,249.16,5.68557547]
[1732206230549,18.52173777,249.22,249.15,34.1153]
[1732206230752,18.52173777,249.22,249.16,5.68161205]
[1732206230954,18.52173777,249.22,249.15,34.1153]
[1732206231284,18.52173777,249.22,249.17,14.0466]
[1732206231961,18.52173777,249.2,249.17,14.0466]
[1732206232163,18.52173777,249.24,249.17,14.0466]
[1732206234381,4.0095,249.41,249.22,18.52173777]
[1732206234583,18.52173777,249.33,249.22,18.52173777]
[1732206235250,18.52173777,249.33,249.23,14.0431]
[1732206236273,18.52173777,249.31,249.23,14.0431]
[1732206236470,18.52173777,249.31,249.25,34.1021]
[1732206236771,18.52173777,249.31,249.26,5.67317877]
[1732206236978,18.52173777,249.31,249.27,5.67317877]
[1732206237165,18.52173777,249.31,249.25,34.1021]
[1732206237364,10.5219,249.46,249.25,34.1021]
[1732206237365,18.52173777,249.29,249.26,5.80393704]
[1732206237568,18.52173777,249.27,249.25,14.042]
[1732206238450,28.6183,249.39,249.33,144.17826223]
[1732206238653,18.52173777,249.33,249.25,30.0901]
[1732206239482,18.52173777,249.33,249.27,14.0409]
[1732206240678,18.52173777,249.29,249.27,10.0292]
[1732206241667,28.6183,249.39,249.27,10.0292]
[1732206241668,18.52173777,249.31,249.27,10.0292]
[1732206241861,18.52173777,249.31,249.25,20.0601]
[1732206243466,18.52173777,249.29,249.23,4.0123]
[1732206244209,18.52173777,249.31,249.23,4.0123]
[1732206244371,40.75652219,249.57,249.23,4.0123]
[1732206244372,42.3251,249.47,249.44,162.7]
[1732206244566,18.52173777,249.45,249.27,18.52173777]
[1732206244788,0.5,249.46,249.25,18.52173777]
[1732206244789,18.52173777,249.37,249.25,18.52173777]
[1732206244959,18.52173777,249.37,249.26,5.80055089]
[1732206245168,18.52173777,249.35,249.26,14.0414]
[1732206246763,18.52173777,249.35,249.26,34.1007]
[1732206247962,18.52173777,249.35,249.26,14.0414]
[1732206248165,18.52173777,249.33,249.26,14.0414]
[1732206248985,4.0089,249.44,249.26,14.0414]
[1732206248986,11.57611975,249.35,249.26,34.1007]
[1732206249192,11.57611975,249.35,249.27,5.7973342]
[1732206249479,11.57611975,249.35,249.26,34.1007]
[1732206249685,11.57611975,249.33,249.27,5.7975923]
[1732206249875,11.57611975,249.33,249.26,30.0889]
[1732206250076,11.57611975,249.33,249.27,5.797964]
[1732206250276,42.3251,249.47,249.43,162.7]
[1732206250471,11.57611975,249.44,249.27,11.57611975]
[1732206250668,11.57611975,249.36,249.28,5.80207924]
[1732206250965,11.57611975,249.34,249.26,10.0296]
[1732206251168,11.57611975,249.34,249.27,5.8028432]
[1732206251368,11.57611975,249.34,249.26,10.0296]
[1732206251593,11.57611975,249.36,249.27,5.805827]
[1732206251892,11.57611975,249.36,249.26,10.0296]
[1732206252067,11.57611975,249.36,249.27,5.8058048]
[1732206252268,11.57611975,249.36,249.26,10.0296]
[1732206252483,11.57611975,249.38,249.27,5.80474009]
[1732206252668,11.57611975,249.38,249.28,5.80474009]
[1732206252874,11.57611975,249.38,249.26,26.98817809]
[1732206252875,11.57611975,249.38,249.26,21.60571975]
[1732206253088,11.57611975,249.38,249.27,5.80413218]
[1732206253292,11.57611975,249.36,249.28,5.80413218]
[1732206253589,11.57611975,249.36,249.26,21.60571975]
[1732206253795,11.57611975,249.36,249.27,5.80046183]
[1732206253970,11.57611975,249.36,249.26,11.57611975]
[1732206254168,11.57611975,249.36,249.27,5.79959278]
[1732206254371,11.57611975,249.36,249.28,5.79959278]
[1732206254569,11.57611975,249.34,249.24,11.57611975]
[1732206254775,11.57611975,249.34,249.25,5.79973521]
[1732206255006,11.57611975,249.34,249.26,5.79973521]
[1732206255177,11.57611975,249.34,249.23,11.57611975]
[1732206255379,11.57611975,249.34,249.24,5.7958892]
[1732206255581,11.57611975,249.34,249.25,5.7958892]
[1732206255900,11.57611975,249.34,249.26,4.63494735]
[1732206256088,11.57611975,249.34,249.27,4.63494735]
[1732206256290,11.57611975,249.34,249.23,17.503628]
[1732206257703,11.57611975,249.32,249.22,5.92750825]
[1732206260378,11.57611975,249.32,249.23,5.09869723]
[1732206260876,11.57611975,249.34,249.23,16.67481698]
[1732206261072,42.3251,249.47,249.26,12.07611975]
[1732206261271,11.57611975,249.39,249.28,11.57611975]
[1732206261491,42.3251,249.47,249.44,151.12388025]
[1732206261799,42.3251,249.47,249.28,10.37671704]
[1732206262007,53.90121975,249.47,249.38,11.57611975]
[1732206262183,11.57611975,249.47,249.38,11.57611975]
[1732206262495,11.57611975,249.49,249.4,11.57611975]
[1732206262719,11.57611975,249.47,249.38,11.57611975]
[1732206263604,11.57611975,249.47,249.33,11.438]
[1732206263605,11.57611975,249.43,249.34,11.57611975]
[1732206263976,11.57611975,249.41,249.34,11.57611975]
[1732206264191,11.57611975,249.41,249.32,11.57611975]
[1732206264396,39.8917,249.53,249.34,11.57611975]
[1732206264397,11.57611975,249.43,249.34,11.57611975]
[1732206265100,11.57611975,249.39,249.3,11.57611975]
[1732206265683,11.57611975,249.35,249.27,17.11630834]
[1732206266010,11.57611975,249.29,249.15,17.08510825]
[1732206266192,11.57611975,249.2,249.15,11.1576]
[1732206266386,11.57611975,249.16,249.13,4.2194928]
[1732206266581,12.4259,249.31,249.1,7.52939737]
[1732206266900,12.4259,249.31,249.13,30.39750825]
[1732206267105,12.4259,249.31,249.14,26.80824939]
[1732206267106,11.57611975,249.24,249.14,26.80824939]
[1732206267318,11.57611975,249.24,249.14,16.65902661]
[1732206267682,11.57611975,249.26,249.16,11.57611975]
[1732206268408,11.57611975,249.24,249.14,11.57611975]
[1732206268588,11.57611975,249.2,249.13,5.92750825]
[1732206268805,11.57611975,249.18,249.1,4.21937475]
[1732206269101,11.57611975,249.18,249.09,4.42422939]
[1732206269322,11.57611975,249.18,249.09,10.35173764]
[1732206269484,11.57611975,249.18,249.09,4.42422939]
[1732206269684,11.57611975,249.18,249.1,11.57611975]
[1732206270304,11.57611975,249.23,249.14,11.57611975]
[1732206270609,11.57611975,249.17,249.1,5.92750825]
[1732206270903,11.57611975,249.19,249.09,17.503628]
[1732206271105,11.57611975,249.17,249.09,10.35173764]
[1732206271292,11.57611975,249.15,249.06,10.35173764]
[1732206271710,11.57611975,249.17,249.07,11.57611975]
[1732206272011,11.57611975,249.15,249.08,5.92750825]
[1732206272220,11.57611975,249.15,249.06,5.92750825]
[1732206272522,11.57611975,249.24,249.05,11.57611975]
[1732206272523,11.57611975,249.24,249.05,5.92750825]
[1732206272809,11.57611975,249.24,249.06,10.34089814]
[1732206273009,20.0,249.3,249.06,5.92750825]
[1732206273312,0.5,249.24,249.06,5.92750825]
[1732206273491,11.57611975,249.13,249.04,11.57611975]
[1732206273998,11.57611975,249.13,249.04,21.91701789]
[1732206274186,11.57611975,249.13,249.04,17.503628]
[1732206274501,11.57611975,249.13,249.04,11.57611975]
[1732206275320,11.57611975,249.13,249.02,5.92750825]
[1732206275488,11.57611975,249.13,249.04,11.57611975]
[1732206275985,11.57611975,249.05,249.01,5.92750825]
[1732206276321,11.57611975,249.05,248.98,5.92750825]
[1732206276689,11.57611975,249.05,248.97,11.57611975]
[1732206276690,11.57611975,249.05,248.97,5.92750825]
[1732206277284,11.57611975,249.05,248.96,11.57611975]
[1732206277486,11.57611975,249.12,248.92,3.83116722]
[1732206277487,31.7249,248.97,248.92,4.40512245]
[1732206277692,0.5,248.95,248.79,5.92750825]
[1732206277885,11.57611975,248.87,248.78,11.57611975]
[1732206278085,32.2249,248.97,248.8,11.57611975]
[1732206278086,11.57611975,248.89,248.8,11.57611975]
[1732206278299,11.57611975,248.87,248.8,11.57611975]
[1732206278604,11.57611975,248.87,248.78,11.57611975]
[1732206278811,18.58889173,248.87,248.78,18.58889173]
[1732206279330,18.58889173,248.87,248.8,18.58889173]
[1732206280312,18.58889173,248.87,248.78,18.58889173]
[1732206280809,18.58889173,248.89,248.8,18.58889173]
[1732206281593,18.58889173,248.91,248.82,18.58889173]
[1732206282401,18.58889173,248.9,248.78,5.92750825]
[1732206282744,18.58889173,248.9,248.81,18.58889173]
[1732206283690,18.58889173,248.92,248.83,18.58889173]
[1732206284106,18.58889173,248.94,248.87,18.58889173]
[1732206284797,18.58889173,248.94,248.85,18.58889173]
[1732206285115,18.58889173,248.96,248.88,18.58889173]
[1732206285408,11.7249,248.97,248.86,18.58889173]
[1732206285409,18.58889173,248.94,248.86,18.58889173]
[1732206285622,18.58889173,248.96,248.86,18.58889173]
[1732206285805,18.58889173,248.96,248.88,18.58889173]
[1732206287605,11.7249,248.97,248.8,5.92750825]
[1732206287606,11.7249,248.97,248.9,18.58889173]
[1732206288510,30.52879173,249.02,248.92,18.58889173]
[1732206289613,30.52879173,249.02,248.94,18.58889173]
[1732206289815,11.9399,249.02,248.94,18.58889173]
[1732206290024,30.52879173,249.02,248.92,18.58889173]
[1732206290319,18.58889173,249.0,248.92,18.58889173]
[1732206290816,11.9399,249.02,248.86,10.18761459]
[1732206291116,30.8322,249.04,248.86,5.92750825]
[1732206291298,30.8322,249.04,248.87,5.92750825]
[1732206291894,49.42109173,249.04,248.95,18.58889173]
[1732206292302,30.8322,249.04,248.97,18.58889173]
[1732206292505,18.58889173,249.06,248.97,18.58889173]
[1732206292921,18.58889173,249.04,248.95,18.58889173]
[1732206293231,18.58889173,249.04,248.97,18.58889173]
[1732206293812,12.0842,249.08,248.97,18.58889173]
[1732206293813,18.58889173,249.06,248.97,18.58889173]
[1732206294721,18.58889173,249.04,248.98,14.0572]
[1732206294933,18.58889173,249.02,248.98,10.0409]
[1732206295100,18.58889173,249.02,248.98,14.0572]
[1732206296016,4.0149,249.07,248.98,14.0572]
[1732206296017,18.58889173,249.04,248.98,14.0572]
[1732206296606,18.58889173,249.04,248.98,10.0409]
[1732206298719,11.59876367,249.07,248.98,21.63966367]
[1732206299723,11.6061,249.16,249.01,11.59876367]
[1732206299915,11.59876367,249.13,249.04,11.59876367]
[1732206301027,11.59876367,249.13,249.05,14.0533]
[1732206301401,11.59876367,249.11,249.05,14.0533]
[1732206302328,11.59876367,249.15,249.07,11.59876367]
[1732206302706,11.6061,249.16,249.07,11.59876367]
[1732206303529,11.59876367,249.13,248.96,23.86039508]
[1732206303707,11.6061,249.16,248.96,23.86039508]
[1732206303708,11.59876367,249.1,249.0,10.0397]
[1732206303910,11.59876367,249.06,249.0,10.0397]
[1732206304512,11.59876367,249.04,248.97,4.0164]
[1732206304702,11.59876367,249.04,248.97,8.29227196]
[1732206305105,11.59876367,249.06,248.97,19.89103563]
[1732206305303,11.59876367,249.06,248.97,15.61516367]
[1732206305507,11.59876367,249.06,248.98,4.28697916]
[1732206305940,11.59876367,249.06,248.97,15.61516367]
[1732206306126,11.59876367,249.06,248.98,4.29180935]
[1732206306330,11.59876367,249.06,248.99,4.29180935]
[1732206306526,0.5,249.14,248.97,25.65646367]
[1732206306527,11.6061,249.16,249.13,162.7]
[1732206306725,11.6061,249.16,249.09,11.59876367]
[1732206306914,11.6061,249.16,249.0,11.59876367]
[1732206306915,11.59876367,249.19,249.11,11.59876367]
[1732206307115,11.59876367,249.21,249.13,11.59876367]
[1732206307825,11.59876367,249.21,249.11,11.59876367]
[1732206308026,11.59876367,249.23,249.15,11.59876367]
[1732206308218,11.59876367,249.23,249.16,14.0471]
[1732206308619,11.6496,249.24,249.16,14.0471]
[1732206308943,18.53146063,249.23,249.16,14.0471]
[1732206309935,18.53146063,249.29,249.2,18.53146063]
[1732206310126,11.8864,249.31,249.16,14.0471]
[1732206310127,11.8864,249.31,249.24,18.53146063]
[1732206310509,48.63276063,249.33,249.24,18.53146063]
[1732206310715,18.53146063,249.31,249.22,18.53146063]
[1732206310915,18.53146063,249.27,249.18,18.53146063]
[1732206312036,18.53146063,249.23,249.19,4.013]
[1732206312245,18.53146063,249.23,249.17,14.0465]
[1732206312420,18.53146063,249.23,249.17,10.0333]
[1732206312617,18.53146063,249.19,249.11,10.0354]
[1732206312846,18.53146063,249.16,249.11,10.0354]
[1732206313352,18.53146063,249.12,249.09,4.30126402]
[1732206313516,18.53146063,249.1,249.06,14.0527]
[1732206313718,18.53146063,249.1,249.07,4.30213544]
[1732206314026,18.53146063,249.1,249.06,10.0377]
[1732206314826,18.53146063,249.1,249.07,4.3012312]
[1732206315421,18.53146063,249.08,249.04,4.3012312]
[1732206315723,18.53146063,249.06,249.05,5.72106568]
[1732206316132,22.54646063,249.06,249.05,5.72106568]
[1732206316340,22.54646063,249.06,249.05,10.29744441]
[1732206316645,18.53146063,249.06,249.05,4.57637873]
[1732206318547,49.92716063,249.12,249.05,4.57637873]
[1732206318548,4.576379,249.17,249.14,162.7]
[1732206318726,18.53146063,249.16,249.07,18.53146063]
[1732206319040,18.53146063,249.18,249.09,18.53146063]
[1732206319244,12.2775,249.19,249.11,18.53146063]
[1732206320048,4.012,249.25,249.12,4.0141]
[1732206320341,18.53146063,249.2,249.12,4.0141]
[1732206320551,18.53146063,249.2,249.12,14.0494]
[1732206320963,18.53146063,249.22,249.13,18.53146063]
[1732206321245,4.012,249.25,249.15,18.53146063]
[1732206321427,18.53146063,249.25,249.15,18.53146063]
[1732206322039,18.53146063,249.25,249.16,14.0471]
[1732206323217,18.53146063,249.23,249.16,14.0471]
[1732206324143,18.53146063,249.23,249.16,10.0337]
[1732206324550,24.011,249.31,249.19,18.53146063]
[1732206324722,18.53146063,249.27,249.19,18.53146063]
[1732206324922,4.511,249.31,249.19,18.53146063]
[1732206325120,18.53146063,249.27,249.19,18.53146063]
[1732206325752,18.53146063,249.27,249.2,14.0449]
[1732206326950,18.53146063,249.25,249.2,14.0449]
[1732206327830,18.53146063,249.25,249.2,10.0321]
[1732206328043,18.53146063,249.27,249.2,10.0321]
[1732206328350,18.53146063,249.25,249.2,10.0321]
[1732206328551,18.53146063,249.23,249.15,10.0339]
[1732206328724,18.53146063,249.21,249.16,4.0133]
[1732206329255,18.53146063,249.19,249.16,4.0133]
[1732206329426,18.53146063,249.21,249.16,4.0133]
[1732206329732,18.53146063,249.21,249.16,14.047]
[1732206330058,18.53146063,249.19,249.16,10.0337]
[1732206330228,18.53146063,249.19,249.12,4.0141]
[1732206330429,18.53146063,249.17,249.12,4.0141]
[1732206330627,18.53146063,249.19,249.12,4.0141]
[1732206331359,18.53146063,249.18,249.12,10.0353]
[1732206332334,18.53146063,249.18,249.05,20.0762]
[1732206332335,18.53146063,249.14,249.07,14.0519]
[1732206332643,18.53146063,249.11,249.07,14.0519]
[1732206333330,18.53146063,249.11,249.07,10.037]
[1732206333969,12.2257,249.18,248.91,5.987986]
[1732206333970,18.53146063,249.09,248.91,5.987986]
[1732206334125,18.53146063,249.02,248.95,4.0168]
[1732206334324,18.53146063,249.0,248.95,8.34026028]
[1732206334530,18.53146063,249.0,248.97,10.0413]
[1732206334934,18.53146063,249.02,248.97,10.0413]
[1732206335329,18.53146063,249.12,248.97,10.0413]
[1732206335330,18.53146063,249.04,248.97,10.0413]
[1732206335829,18.53146063,249.04,248.97,14.36476028]
[1732206336035,18.53146063,249.04,248.97,10.0413]
[1732206336933,18.53146063,249.12,248.97,10.0413]
[1732206336934,18.53146063,249.02,248.97,14.0578]
[1732206337131,18.53146063,249.0,248.94,4.32346028]
[1732206337329,18.53146063,249.0,248.95,4.0168]
[1732206337743,18.53146063,249.02,248.95,4.0168]
[1732206338738,24.0147,249.08,248.95,32.59036063]
[1732206338943,18.53146063,249.05,248.97,18.53146063]
[1732206339153,18.53146063,249.05,248.95,32.59036063]
[1732206339650,18.53146063,249.05,248.97,18.53146063]
[1732206339836,18.53146063,249.05,248.98,14.0572]
[1732206340735,18.53146063,249.11,249.03,18.53146063]
[1732206341248,18.53146063,249.08,248.99,18.53146063]